bitfinex/quotes_SOLUSD_20260305
["timestamp","ask_amount","ask_price","bid_price","bid_amount"]
[1772710805243,1.44997479,91.727,91.693,1.40402652]
[1772710805449,10.90179661,91.728,91.693,1.40402652]
[1772710805628,1.44997479,91.727,91.693,1.40402652]
[1772710805831,1.44997479,91.733,91.693,1.40402652]
[1772710806347,10.73446198,91.73,91.692,10.90605955]
[1772710806651,10.90118352,91.734,91.688,1.40402652]
[1772710807347,10.90048943,91.739,91.69,1.40402652]
[1772710807727,38.151713,91.739,91.69,1.40402652]
[1772710808223,1.44997479,91.738,91.69,1.40402652]
[1772710808632,1.44997479,91.759,91.69,1.68834966]
[1772710808847,10.898564,91.756,91.69,1.68834966]
[1772710809033,1.44997479,91.763,91.696,0.14216157]
[1772710809355,10.89794511,91.761,91.699,1.40402652]
[1772710809535,54.47254764,91.79,91.698,38.16877139]
[1772710809536,1.44997479,91.767,91.702,1.68834966]
[1772710810235,10.89538253,91.782,91.706,3.69383402]
[1772710810436,10.73446198,91.77,91.711,1.40402652]
[1772710810753,1.44997479,91.769,91.711,1.40402652]
[1772710811534,10.89704472,91.768,91.714,1.40402652]
[1772710811849,1.44997479,91.776,91.714,1.40402652]
[1772710812043,10.89621356,91.775,91.716,1.68834966]
[1772710812231,10.89556185,91.781,91.716,1.68834966]
[1772710812434,1.44997479,91.784,91.716,1.68834966]
[1772710813141,1.44997479,91.784,91.719,1.40402652]
[1772710813545,10.89455163,91.789,91.724,1.40402652]
[1772710813751,10.89455163,91.789,91.724,1.68834966]
[1772710813951,1.44997479,91.788,91.724,1.68834966]
[1772710814544,1.44997479,91.779,91.725,1.68834966]
[1772710814945,1.44997479,91.769,91.725,1.40402652]
[1772710815641,10.73446198,91.76,91.725,1.40402652]
[1772710815831,1.44997479,91.749,91.711,12.30784394]
[1772710816032,1.44997479,91.749,91.712,1.40402652]
[1772710817065,1.44997479,91.749,91.711,10.90381742]
[1772710817359,1.44997479,91.749,91.712,1.40402652]
[1772710817566,10.73446198,91.74,91.695,1.40402652]
[1772710817736,1.44997479,91.729,91.686,1.40402652]
[1772710818445,1.44997479,91.729,91.686,1.68834966]
[1772710818756,1.44997479,91.738,91.686,1.68834966]
[1772710819549,1.44997479,91.738,91.664,43.63735313]
[1772710819550,10.90417411,91.708,91.676,1.54167215]
[1772710819748,10.73446198,91.71,91.68,1.64167215]
[1772710819953,10.90405521,91.709,91.68,1.64167215]
[1772710820563,28.77358499,91.718,91.68,1.64167215]
[1772710820564,1.51596386,91.718,91.68,1.64167215]
[1772710820736,10.73446198,91.72,91.68,1.64167215]
[1772710820943,1.51596386,91.719,91.68,1.64167215]
[1772710821142,10.73446198,91.71,91.68,1.64167215]
[1772710821369,1.51596386,91.709,91.68,1.64167215]
[1772710821953,10.90417411,91.708,91.681,10.90738539]
[1772710822259,1.51596386,91.707,91.681,10.90738539]
[1772710822442,1.51596386,91.707,91.68,0.1]
[1772710822647,1.51596386,91.707,91.68,11.00743876]
[1772710823366,1.51596386,91.707,91.68,0.1]
[1772710823543,1.51596386,91.715,91.682,1.54167215]
[1772710823943,10.90261333,91.722,91.684,1.54167215]
[1772710824152,1.51596386,91.733,91.686,1.54167215]
[1772710824345,1.51596386,91.733,91.685,0.28432314]
[1772710824346,1.51596386,91.731,91.688,1.54167215]
[1772710825240,12.25042584,91.72,91.688,1.54167215]
[1772710825860,1.51596386,91.72,91.688,1.54167215]
[1772710826260,12.41883022,91.719,91.689,10.9064337]
[1772710826450,12.41883022,91.719,91.68,0.1]
[1772710826451,0.21358578,91.709,91.68,0.1]
[1772710826651,0.21358578,91.709,91.681,10.90738539]
[1772710827061,0.21358578,91.709,91.68,0.1]
[1772710827245,38.16003226,91.719,91.663,12.45108514]
[1772710827246,0.213329,91.699,91.663,12.45108514]
[1772710827441,0.213329,91.699,91.655,10.91047951]
[1772710827662,10.73446198,91.69,91.656,1.52045088]
[1772710827863,0.213329,91.699,91.656,1.52045088]
[1772710828275,0.213329,91.699,91.65,27.27763329]
[1772710828276,0.11282425,91.697,91.658,1.52045088]
[1772710830255,0.11282425,91.697,91.642,1.52045088]
[1772710830452,0.11282425,91.697,91.643,1.52045088]
[1772710830647,10.76870433,91.68,91.647,1.52045088]
[1772710830955,0.11208867,91.679,91.638,1.52045088]
[1772710831278,10.76870433,91.69,91.638,1.52045088]
[1772710831763,0.11245589,91.697,91.638,1.52045088]
[1772710832075,0.11245589,91.697,91.648,1.52045088]
[1772710832451,0.11245589,91.697,91.65,1.52045088]
[1772710833075,0.11282714,91.689,91.65,1.52045088]
[1772710833277,38.16877139,91.698,91.65,1.52045088]
[1772710833575,38.28159853,91.698,91.65,1.52045088]
[1772710833776,0.11319414,91.697,91.65,1.52045088]
[1772710834372,10.76870433,91.69,91.65,1.52045088]
[1772710834760,11.01999061,91.689,91.652,1.52045088]
[1772710835166,10.9064337,91.689,91.652,1.52045088]
[1772710835473,0.11355691,91.688,91.651,10.91095569]
[1772710835650,10.9064337,91.689,91.652,1.52045088]
[1772710835852,10.90536325,91.698,91.652,1.52045088]
[1772710836074,11.01927877,91.698,91.652,1.52045088]
[1772710836468,0.11391552,91.697,91.652,1.52045088]
[1772710836856,0.11391552,91.697,91.654,1.52045088]
[1772710837170,10.76870433,91.69,91.654,1.52045088]
[1772710837758,0.11427001,91.689,91.654,1.52045088]
[1772710837958,10.61037594,91.69,91.654,1.52045088]
[1772710838158,10.76870433,91.69,91.654,1.52045088]
[1772710838575,10.9064337,91.689,91.655,10.91047951]
[1772710838958,10.9064337,91.689,91.656,1.54227378]
[1772710839566,43.60964753,91.723,91.629,0.28432314]
[1772710839567,0.14216157,91.728,91.658,1.54227378]
[1772710839767,10.76870433,91.7,91.658,1.54227378]
[1772710840480,10.76870433,91.69,91.658,1.54227378]
[1772710840682,10.76870433,91.69,91.657,10.91024144]
[1772710841085,10.76870433,91.7,91.658,1.54227378]
[1772710842480,10.76870433,91.69,91.66,1.54227378]
[1772710842779,10.76870433,91.69,91.648,27.27823507]
[1772710842780,10.76870433,91.69,91.655,10.91046376]
[1772710843379,10.76870433,91.7,91.656,1.54227378]
[1772710843779,10.76870433,91.69,91.656,1.54227378]
[1772710844377,10.76870433,91.69,91.655,12.45273754]
[1772710844579,10.9064337,91.689,91.656,1.54227378]
[1772710844779,10.9064337,91.689,91.631,1.82659692]
[1772710845167,38.17251796,91.689,91.631,1.82659692]
[1772710845776,10.9064337,91.689,91.631,1.82659692]
[1772710846680,10.9064337,91.689,91.633,1.82659692]
[1772710849186,10.76870433,91.7,91.635,1.82659692]
[1772710849384,10.76870433,91.69,91.635,1.82659692]
[1772710849900,10.76870433,91.7,91.635,1.82659692]
[1772710850970,10.76870433,91.71,91.638,1.82659692]
[1772710851169,38.16419325,91.709,91.64,1.82659692]
[1772710851388,10.90405521,91.709,91.643,1.82659692]
[1772710851599,10.76870433,91.7,91.643,1.82659692]
[1772710852476,5.02707611,91.69,91.643,1.54227378]
[1772710853093,38.17251796,91.689,91.644,10.91178909]
[1772710853401,38.17251796,91.689,91.645,1.54227378]
[1772710854881,5.02707611,91.69,91.645,1.54227378]
[1772710855193,15.93339884,91.69,91.645,1.54227378]
[1772710855579,15.93339884,91.69,91.647,1.54227378]
[1772710855792,5.02707611,91.68,91.647,1.54227378]
[1772710855998,15.93339884,91.69,91.647,1.54227378]
[1772710856893,10.90632273,91.69,91.647,1.54227378]
[1772710857298,10.90524433,91.699,91.649,1.54227378]
[1772710857480,5.02707611,91.69,91.649,1.54227378]
[1772710858074,10.9064337,91.689,91.651,1.54227378]
[1772710859094,5.02707611,91.68,91.65,10.91107474]
[1772710859294,38.17251796,91.689,91.604,4.82477569]
[1772710859487,5.02707611,91.68,91.614,1.54227378]
[1772710859878,5.02707611,91.68,91.617,0.14216157]
[1772710860077,5.02707611,91.68,91.613,3.69383402]
[1772710860078,10.90762333,91.679,91.63,1.54227378]
[1772710860598,5.02707611,91.69,91.637,0.28432314]
[1772710860899,15.93339086,91.69,91.638,1.54227378]
[1772710861101,5.02707611,91.68,91.638,1.54227378]
[1772710861299,15.93339086,91.69,91.638,1.54227378]
[1772710861599,5.02707611,91.69,91.638,1.54227378]
[1772710862602,5.02707611,91.7,91.64,1.54227378]
[1772710862783,5.02707611,91.72,91.645,1.54227378]
[1772710862983,10.9012024,91.733,91.654,4.82477569]
[1772710863204,5.02707611,91.74,91.665,1.54227378]
[1772710863388,5.02707611,91.76,91.677,1.68443535]
[1772710863701,5.02707611,91.75,91.695,1.54227378]
[1772710863898,5.02707611,91.74,91.699,1.54227378]
[1772710864401,5.02707611,91.73,91.663,1.54227378]
[1772710864592,5.02707611,91.73,91.671,1.54227378]
[1772710864790,5.02707611,91.74,91.679,1.54227378]
[1772710865196,5.02707611,91.72,91.679,1.54227378]
[1772710865396,5.02707611,91.73,91.679,1.54227378]
[1772710865592,5.02707611,91.74,91.683,1.54227378]
[1772710865792,10.89965775,91.746,91.689,1.54227378]
[1772710866304,54.49828875,91.746,91.671,1.54227378]
[1772710866495,54.49828875,91.746,91.67,10.90869422]
[1772710866496,5.02707611,91.7,91.67,10.90869422]
[1772710866800,10.90524433,91.699,91.666,1.54227378]
[1772710867503,5.02707611,91.69,91.665,10.90928925]
[1772710867883,10.90524433,91.699,91.665,10.90928925]
[1772710868706,10.90524433,91.699,91.664,1.54227378]
[1772710869303,10.76832512,91.69,91.658,10.91012241]
[1772710870686,10.90762333,91.679,91.646,10.91150139]
[1772710870892,10.90762333,91.679,91.647,1.54227378]
[1772710871301,10.76832512,91.69,91.647,1.54227378]
[1772710871598,38.17251796,91.689,91.647,1.54227378]
[1772710871817,10.76832512,91.68,91.646,10.91150139]
[1772710872211,10.76832512,91.68,91.646,12.45377517]
[1772710872913,10.90762333,91.679,91.638,1.54227378]
[1772710873416,0.28432314,91.715,91.638,1.54227378]
[1772710873620,10.76832512,91.7,91.638,1.54227378]
[1772710874030,27.25805748,91.716,91.64,1.54227378]
[1772710874031,10.76832512,91.71,91.64,1.54227378]
[1772710874315,10.76832512,91.71,91.657,0.28432314]
[1772710874613,10.76832512,91.71,91.658,1.54227378]
[1772710875014,3.69383402,91.736,91.66,1.54227378]
[1772710875227,10.90048943,91.739,91.662,1.54227378]
[1772710875228,10.76832512,91.73,91.662,1.54227378]
[1772710875429,10.76832512,91.73,91.668,1.54227378]
[1772710875633,10.76832512,91.72,91.668,1.54227378]
[1772710876308,10.76832512,91.73,91.668,1.54227378]
[1772710876814,38.151713,91.739,91.668,1.54227378]
[1772710877015,10.76832512,91.73,91.67,1.54227378]
[1772710877419,10.76832512,91.72,91.67,1.54227378]
[1772710877617,10.76832512,91.73,91.67,1.54227378]
[1772710877813,10.76832512,91.72,91.67,1.54227378]
[1772710878019,10.76832512,91.7,91.661,1.54227378]
[1772710878331,10.76832512,91.69,91.661,1.54227378]
[1772710878634,10.76832512,91.69,91.653,1.54227378]
[1772710879128,10.9064337,91.689,91.654,10.91059855]
[1772710879423,10.9064337,91.689,91.655,1.54227378]
[1772710879831,10.90590634,91.694,91.655,1.54227378]
[1772710881607,10.90531249,91.699,91.656,38.18626166]
[1772710881830,10.76832512,91.7,91.657,1.54227378]
[1772710882128,10.76832512,91.69,91.657,1.54227378]
[1772710882332,38.16835515,91.699,91.659,1.54227378]
[1772710882825,10.90524433,91.699,91.659,1.54227378]
[1772710884438,38.16835515,91.699,91.661,1.54227378]
[1772710884637,10.90096473,91.735,91.661,1.09097653]
[1772710884816,10.76832512,91.73,91.664,1.54227378]
[1772710885017,10.76832512,91.73,91.668,1.54227378]
[1772710886045,38.15337656,91.735,91.668,1.54227378]
[1772710886617,10.76832512,91.73,91.669,38.1808463]
[1772710886939,10.76832512,91.73,91.67,1.54227378]
[1772710888837,10.90167776,91.729,91.672,1.54227378]
[1772710890436,10.76832512,91.72,91.672,1.54227378]
[1772710890634,10.76393728,91.72,91.672,1.54227378]
[1772710890824,10.76393728,91.73,91.674,1.54227378]
[1772710891022,10.76393728,91.73,91.676,1.54227378]
[1772710891543,10.76393728,91.74,91.676,1.54227378]
[1772710892029,10.76393728,91.73,91.676,1.54227378]
[1772710892341,10.76393728,91.74,91.676,1.54227378]
[1772710892740,10.76393728,91.72,91.676,1.54227378]
[1772710892934,10.76393728,91.72,91.68,1.54227378]
[1772710893143,10.76393728,91.73,91.682,1.54227378]
[1772710894242,10.90167776,91.729,91.684,1.54227378]
[1772710894444,10.90072707,91.737,91.684,1.54227378]
[1772710896339,10.90072707,91.737,91.683,38.17501608]
[1772710896340,10.90072707,91.737,91.686,1.54227378]
[1772710898335,10.90072707,91.737,91.69,1.54227378]
[1772710898927,10.89930135,91.749,91.69,1.54227378]
[1772710899122,10.89930135,91.749,91.692,1.54227378]
[1772710899323,10.89930135,91.749,91.694,1.54227378]
[1772710899524,10.89692597,91.769,91.696,1.54227378]
[1772710899746,10.89692597,91.769,91.708,1.54227378]
[1772710900045,10.89692597,91.769,91.689,179.95615612]
[1772710900046,10.76393728,91.74,91.69,1.54227378]
[1772710900526,10.90048943,91.739,91.692,1.54227378]
[1772710902053,10.89930135,91.749,91.692,1.54227378]
[1772710902429,10.89930135,91.749,91.693,38.17085273]
[1772710902634,10.89930135,91.749,91.696,1.54227378]
[1772710902837,10.89930135,91.749,91.698,1.54227378]
[1772710904045,38.00915233,91.76,91.693,38.17085273]
[1772710904046,10.89811353,91.759,91.702,1.54227378]
[1772710904234,10.89811353,91.759,91.708,1.54227378]
[1772710905841,10.89768352,91.763,91.71,1.54227378]
[1772710906934,10.89692597,91.769,91.712,1.54227378]
[1772710907350,10.89692597,91.769,91.716,1.54227378]
[1772710907857,10.89692597,91.769,91.718,1.54227378]
[1772710908738,10.76393728,91.76,91.718,1.54227378]
[1772710909052,10.89811353,91.759,91.72,1.54227378]
[1772710910250,10.89811353,91.759,91.721,61.04223604]
[1772710910460,10.89811353,91.759,91.723,1.54227378]
[1772710910959,10.89930135,91.749,91.722,61.04223604]
[1772710913437,5.01884755,91.76,91.724,1.54227378]
[1772710914552,5.01884755,91.75,91.724,1.54227378]
[1772710914758,0.02008427,91.749,91.724,1.54227378]
[1772710914959,0.02008427,91.748,91.723,10.90239089]
[1772710915951,0.02008427,91.748,91.722,61.04223604]
[1772710916339,0.02008427,91.748,91.718,1.54227378]
[1772710917062,10.89930135,91.749,91.72,1.54227378]
[1772710917360,0.02037733,91.755,91.72,1.54227378]
[1772710917740,10.91902087,91.755,91.72,1.54227378]
[1772710918358,10.89864354,91.755,91.72,1.54227378]
[1772710918559,0.02052134,91.754,91.719,10.90286636]
[1772710918742,0.02052134,91.754,91.72,1.54227378]
[1772710918944,0.02052134,91.754,91.722,1.54227378]
[1772710921053,0.02052134,91.754,91.724,1.54227378]
[1772710921251,0.02094353,91.762,91.724,1.54227378]
[1772710921577,10.897876,91.761,91.724,1.54227378]
[1772710921763,10.9178695,91.769,91.724,1.54227378]
[1772710921971,10.89692597,91.769,91.724,1.54227378]
[1772710922543,10.91741677,91.774,91.724,1.54227378]
[1772710923267,0.02108104,91.774,91.726,1.54227378]
[1772710923646,38.13529759,91.779,91.726,1.54227378]
[1772710923647,5.01884755,91.77,91.726,1.54227378]
[1772710923856,0.02135134,91.759,91.726,1.54227378]
[1772710926463,0.02135134,91.759,91.728,1.54227378]
[1772710927547,10.89692597,91.769,91.728,1.54227378]
[1772710928247,0.02187355,91.773,91.728,1.54227378]
[1772710928472,0.02187355,91.773,91.73,1.54227378]
[1772710930052,0.02212575,91.769,91.73,1.54227378]
[1772710930250,10.89573867,91.779,91.696,1.54227378]
[1772710930251,0.02212575,91.739,91.696,1.54227378]
[1772710930473,0.02212575,91.719,91.686,1.54227378]
[1772710930860,0.02224968,91.738,91.686,1.54227378]
[1772710931374,0.02224968,91.729,91.686,1.54227378]
[1772710931958,0.02237218,91.719,91.686,1.54227378]
[1772710932155,0.02237218,91.719,91.679,12.4498002]
[1772710932363,0.02237218,91.718,91.679,12.4498002]
[1772710932558,0.02237218,91.718,91.68,1.54227378]
[1772710932782,10.90228032,91.724,91.68,1.54227378]
[1772710933080,0.02249328,91.723,91.68,1.54227378]
[1772710933462,0.02249328,91.719,91.68,1.54227378]
[1772710934368,0.02261299,91.708,91.659,1.54227378]
[1772710934578,0.02261299,91.699,91.659,1.54227378]
[1772710934775,38.16419325,91.709,91.647,1.54227378]
[1772710934776,5.01884755,91.68,91.647,1.54227378]
[1772710934985,0.02273132,91.682,91.647,1.54227378]
[1772710935881,5.01884755,91.68,91.647,1.54227378]
[1772710936483,5.01884755,91.68,91.628,0.28432314]
[1772710936484,0.02273132,91.682,91.649,1.54227378]
[1772710936808,0.0228483,91.691,91.649,1.54227378]
[1772710936999,5.01884755,91.69,91.649,1.54227378]
[1772710938086,0.0228483,91.691,91.649,1.54227378]
[1772710938289,5.04192578,91.69,91.649,1.54227378]
[1772710938893,0.02330291,91.688,91.651,1.54227378]
[1772710939272,0.02330291,91.688,91.65,10.91107474]
[1772710939782,0.02330291,91.688,91.651,1.54227378]
[1772710940678,0.02330291,91.688,91.653,1.54227378]
[1772710940878,0.02352246,91.699,91.653,1.54227378]
[1772710943305,0.023737,91.698,91.655,1.54227378]
[1772710945695,104.9,91.76,91.655,1.54227378]
[1772710945696,0.02404965,91.713,91.659,1.54227378]
[1772710945883,10.90286636,91.719,91.66,1.54227378]
[1772710946087,0.02415148,91.718,91.661,1.54227378]
[1772710946982,0.02415148,91.718,91.663,1.54227378]
[1772710948274,0.02415148,91.718,91.669,1.54227378]
[1772710948975,27.25433982,91.729,91.66,61.3]
[1772710948976,0.02445001,91.725,91.671,1.54227378]
[1772710951100,0.02445001,91.725,91.673,1.54227378]
[1772710953099,0.02445001,91.725,91.675,1.54227378]
[1772710953603,10.90167776,91.729,91.675,1.54227378]
[1772710953903,0.02492513,91.728,91.675,1.54227378]
[1772710955391,0.02492513,91.728,91.677,1.54227378]
[1772710957903,0.02492513,91.728,91.679,1.54227378]
[1772710961379,0.02492513,91.728,91.681,1.54227378]
[1772710961689,0.02492513,91.728,91.683,1.54227378]
[1772710962795,0.02492513,91.728,91.685,1.54227378]
[1772710964705,54.49650677,91.749,91.684,38.1745997]
[1772710964706,10.89946397,91.748,91.687,1.54227378]
[1772710964894,0.02579688,91.749,91.684,81.80271365]
[1772710964895,0.02579688,91.749,91.69,1.82659692]
[1772710966925,0.02579688,91.749,91.692,1.82659692]
[1772710967099,0.02579688,91.749,91.692,1.54227378]
[1772710967301,0.02603936,91.739,91.692,1.54227378]
[1772710968813,0.02627359,91.729,91.694,1.54227378]
[1772710972721,0.02627359,91.729,91.696,1.54227378]
[1772710973022,0.02627359,91.729,91.698,1.54227378]
[1772710974897,0.02627359,91.729,91.699,1.54227378]
[1772710975920,0.02678955,91.738,91.699,1.54227378]
[1772710976307,0.02678955,91.738,91.7,61.3]
[1772710976618,0.02678955,91.738,91.701,1.54227378]
[1772710979323,0.02678955,91.738,91.703,1.54227378]
[1772710980626,0.02678955,91.738,91.705,1.54227378]
[1772710983133,0.02678955,91.738,91.707,1.54227378]
[1772710984163,38.151713,91.739,91.678,1.54227378]
[1772710984164,0.02733032,91.719,91.678,1.54227378]
[1772710985630,0.02739447,91.718,91.679,12.44989711]
[1772710985830,0.02739447,91.718,91.679,1.54227378]
[1772710986010,0.02745789,91.709,91.679,1.54227378]
[1772710986217,0.02745789,91.709,91.68,1.54227378]
[1772710987831,0.02745789,91.709,91.682,1.54227378]
[1772710989034,0.02764379,91.718,91.682,1.54227378]
[1772710989925,38.16003226,91.719,91.675,61.3]
[1772710989926,0.02770434,91.699,91.675,61.3]
[1772710990138,0.02770434,91.699,91.667,1.54227378]
[1772710990341,0.02770434,91.699,91.657,1.54227378]
[1772710990918,0.02782336,91.709,91.657,1.54227378]
[1772710991119,38.16003226,91.719,91.659,1.54227378]
[1772710991437,0.02782336,91.718,91.659,1.54227378]
[1772710992022,0.02782336,91.718,91.661,1.54227378]
[1772710992332,0.02788185,91.699,91.661,1.54227378]
[1772710992537,0.02788185,91.699,91.663,1.54227378]
[1772710992931,0.02793966,91.709,91.663,1.54227378]
[1772710993919,0.02793966,91.709,91.665,1.54227378]
[1772710994320,0.02793966,91.709,91.667,1.54227378]
[1772710994918,0.02805331,91.718,91.667,1.54227378]
[1772710996326,0.02805331,91.718,91.669,1.54227378]
[1772710997728,0.02816436,91.709,91.669,1.54227378]
[1772710999442,0.02832619,91.708,91.671,1.54227378]
[1772711000435,0.02832619,91.708,91.67,10.450968]
[1772711000640,0.02832619,91.708,91.67,37.72270357]
[1772711001532,1.42847208,91.729,91.671,61.3]
[1772711001736,1.42847208,91.729,91.673,0.28432314]
[1772711001947,1.42847208,91.729,91.675,0.28432314]
[1772711002336,1.42847208,91.729,91.676,1.42404045]
[1772711002928,1.42847208,91.739,91.676,1.42404045]
[1772711005853,1.42847208,91.739,91.674,61.3]
[1772711005854,1.42847208,91.719,91.678,1.42404045]
[1772711006153,1.42847208,91.729,91.678,1.70836359]
[1772711006357,1.42847208,91.739,91.678,1.70836359]
[1772711006845,1.42847208,91.739,91.68,1.70836359]
[1772711007658,10.90060825,91.738,91.682,0.28432314]
[1772711007848,10.90060825,91.738,91.689,1.53175394]
[1772711008636,1.55171265,91.758,91.696,0.14216157]
[1772711008845,1.55171265,91.758,91.699,1.53175394]
[1772711009759,1.55171265,91.756,91.701,1.53175394]
[1772711010558,10.89835107,91.757,91.701,1.53175394]
[1772711010559,1.55171265,91.749,91.701,1.53175394]
[1772711012264,12.4511328,91.748,91.703,1.53175394]
[1772711012475,10.89942015,91.748,91.703,1.53175394]
[1772711012951,1.55171265,91.747,91.703,1.53175394]
[1772711013159,1.55171265,91.753,91.703,1.53175394]
[1772711013369,1.55171265,91.749,91.703,1.53175394]
[1772711014248,1.55171265,91.739,91.696,1.53175394]
[1772711016558,1.55171265,91.737,91.698,1.53175394]
[1772711017059,1.55171265,91.729,91.697,10.90548218]
[1772711018761,1.55171265,91.727,91.696,1.53175394]
[1772711019567,54.48894047,91.762,91.696,1.53175394]
[1772711019568,1.55171265,91.735,91.696,1.53175394]
[1772711019959,5.02102427,91.72,91.671,1.53175394]
[1772711020163,1.55171265,91.719,91.671,1.53175394]
[1772711021967,1.55171265,91.717,91.673,1.53175394]
[1772711024170,1.55171265,91.715,91.675,1.53175394]
[1772711026368,1.55171265,91.715,91.677,1.53175394]
[1772711026556,12.45513866,91.715,91.677,1.53175394]
[1772711026755,1.55171265,91.714,91.677,1.53175394]
[1772711026950,1.55171265,91.714,91.677,62.83175394]
[1772711027671,1.55171265,91.714,91.677,61.3]
[1772711027850,1.55171265,91.712,91.678,1.53175394]
[1772711028248,1.55171265,91.707,91.678,1.53175394]
[1772711028565,1.55171265,91.705,91.678,1.53175394]
[1772711028872,7.18496838,91.704,91.678,1.53175394]
[1772711029069,7.18496838,91.703,91.68,1.45230496]
[1772711029255,10.90313037,91.717,91.68,1.45230496]
[1772711029655,12.32561885,91.717,91.68,1.45230496]
[1772711029955,1.42248848,91.716,91.682,1.45230496]
[1772711030357,1.42248848,91.721,91.682,1.45230496]
[1772711030552,1.42248848,91.719,91.682,1.45230496]
[1772711031382,10.90203089,91.727,91.682,1.45230496]
[1772711031566,10.90148459,91.731,91.682,1.45230496]
[1772711031766,1.42248848,91.73,91.682,1.45230496]
[1772711031991,1.42248848,91.73,91.684,1.45230496]
[1772711032156,1.42248848,91.735,91.684,1.7366281]
[1772711033364,10.90085325,91.736,91.686,1.7366281]
[1772711033694,1.42248848,91.735,91.686,1.7366281]
[1772711034983,1.42248848,91.735,91.688,0.28432314]
[1772711034984,10.90108356,91.734,91.688,0.28432314]
[1772711035159,10.90108356,91.734,91.687,38.17335063]
[1772711035160,1.42248848,91.719,91.687,10.90667161]
[1772711037083,1.42248848,91.707,91.682,10.90719352]
[1772711037458,5.02102427,91.7,91.664,1.55593246]
[1772711037662,10.90376039,91.712,91.664,1.55593246]
[1772711037870,10.90376039,91.712,91.668,1.55593246]
[1772711037871,0.02931417,91.711,91.668,1.55593246]
[1772711039162,27.25727734,91.719,91.659,0.28432314]
[1772711039163,0.02995952,91.718,91.67,1.55593246]
[1772711039372,9.01172939,91.718,91.67,1.55593246]
[1772711039575,0.02995952,91.717,91.67,1.55593246]
[1772711040273,8.98176987,91.719,91.672,1.55593246]
[1772711040478,0.03059747,91.728,91.669,92.72491245]
[1772711040479,5.02102427,91.72,91.669,39.73677876]
[1772711040676,0.03059747,91.719,91.67,1.55593246]
[1772711041182,0.03059747,91.719,91.672,1.55593246]
[1772711041365,0.03122808,91.717,91.672,1.55593246]
[1772711041692,0.03122808,91.717,91.642,4.78503674]
[1772711041693,0.03185145,91.699,91.666,12.46501313]
[1772711041989,0.03185145,91.697,91.666,12.46501313]
[1772711042169,0.03185145,91.695,91.666,12.46501313]
[1772711042364,0.03185145,91.693,91.651,1.55593246]
[1772711042560,0.03185145,91.691,91.651,1.55593246]
[1772711042757,0.03266369,91.689,91.651,1.55593246]
[1772711042969,0.03266369,91.687,91.651,1.55593246]
[1772711043167,0.03266369,91.684,91.653,1.55593246]
[1772711043366,7.21501284,91.683,91.653,1.55593246]
[1772711043588,7.18234915,91.682,91.653,1.55593246]
[1772711043884,7.18234915,91.681,91.653,1.55593246]
[1772711044085,7.18234915,91.68,91.653,1.55593246]
[1772711044273,7.18234915,91.679,91.655,1.55593246]
[1772711044474,7.18234915,91.678,91.655,1.55593246]
[1772711044691,7.18234915,91.677,91.655,1.55593246]
[1772711044872,7.18234915,91.676,91.655,1.55593246]
[1772711045074,7.18234915,91.675,91.655,1.55593246]
[1772711045276,7.18234915,91.674,91.655,1.55593246]
[1772711045482,0.03266369,91.683,91.655,1.55593246]
[1772711045670,10.90524433,91.699,91.657,1.55593246]
[1772711045867,0.03426028,91.706,91.659,1.55593246]
[1772711046076,10.90453083,91.705,91.659,1.55593246]
[1772711046274,0.03504485,91.704,91.661,1.55593246]
[1772711046786,0.03504485,91.704,91.662,61.3]
[1772711046986,0.03504485,91.704,91.663,62.85593246]
[1772711047192,0.03504485,91.704,91.663,61.3]
[1772711047390,0.03582041,91.699,91.663,61.3]
[1772711048479,0.03582041,91.699,91.664,10.90940827]
[1772711051576,0.03582041,91.699,91.642,61.3]
[1772711051782,0.03582041,91.699,91.664,1.55593246]
[1772711052974,0.04029024,91.689,91.648,1.55593246]
[1772711053806,0.04029024,91.689,91.65,1.55593246]
[1772711054987,0.04029024,91.689,91.652,1.55593246]
[1772711056303,8.98176987,91.694,91.652,1.55593246]
[1772711056601,8.98176987,91.698,91.652,1.55593246]
[1772711057000,8.98176987,91.698,91.654,1.55593246]
[1772711057189,10.90460753,91.705,91.658,1.55593246]
[1772711057700,0.04310256,91.703,91.658,1.55593246]
[1772711057906,0.04378557,91.701,91.658,1.55593246]
[1772711058110,0.04378557,91.699,91.66,1.55593246]
[1772711058295,0.04378557,91.697,91.66,1.55593246]
[1772711058604,0.04378557,91.693,91.66,1.55593246]
[1772711058806,0.04512814,91.691,91.66,1.55593246]
[1772711059002,0.04512814,91.689,91.66,1.55593246]
[1772711059217,0.04512814,91.687,91.66,1.55593246]
[1772711059394,7.21959551,91.686,91.661,10.90976533]
[1772711059587,7.17446737,91.685,91.661,10.90976533]
[1772711059789,7.17446737,91.684,91.661,10.90976533]
[1772711059988,0.04512814,91.686,91.661,10.90976533]
[1772711059989,7.17446737,91.683,91.661,10.90976533]
[1772711060189,7.17446737,91.682,91.661,10.90976533]
[1772711060409,7.17446737,91.681,91.661,10.90976533]
[1772711060596,7.22025525,91.68,91.653,1.55593246]
[1772711060782,7.17446737,91.679,91.653,1.55593246]
[1772711060986,7.17446737,91.678,91.653,1.55593246]
[1772711061206,7.17446737,91.677,91.653,1.55593246]
[1772711061411,7.17446737,91.676,91.653,1.55593246]